Cogmind - Beta 17.1 @@@ ROGUE MODE // 2026.09.05 @ 03:05:39 Player: 4R-ZE3 Result: Escaped! Performance ------------- Evolutions (9) 4500 Regions Visited (26) 5200 Robots Destroyed (614) 3070 Value Destroyed (34091) 34091 Prototype IDs (58) 1160 Alien Tech Used (1) 200 Bonus (26686) 26686 TOTAL SCORE: 74907 Bonus ------- Triggered High Security 500 High Alert Combat Kills 12908 Follower Combat Kills 1350 Entered Garrisons 200 Used RIF Installer 500 Network Hubs Disabled 200 Met Imprinter 300 Met Warlord at Base 500 MAIN.C Attacked Warlord 500 Warlord Defense Kills 1872 Built Enhanced Grunts 300 A7 Reached Mainframe 300 Met R17 at Cetus 500 Met R17 at Research 2000 Met Warlord at Research 2000 Scanned by Researcher 500 Win 3000 Friendly Fire -744 Cogmind --------- Core Integrity 1267/1600 Matter 252/300 Energy 1253/1260 System Corruption 5% Temperature Cool (-192) Movement Treading (250) Ox1 Location To Epsilon Eridani Parts ------- > --- POWER (3) -------- Light Antimatter Reactor Light Quantum Reactor > --- PROPULSION (6) --- Advanced Heavy Siege Treads Advanced Heavy Siege Treads Enhanced Biometal Leg > --- UTILITY (12) ----- Advanced Cryofiber Web Advanced Heat Sink Experimental Heat Sink Huge Storage Unit Advanced Energy Well Advanced Energy Well Spectral Analyzer Experimental Targeting Computer Experimental Core Analyzer Advanced Kinecellerator Graphene Brace > --- WEAPON (4) ------- Gamma Rifle Cooled Nova Cannon Helical Railgun Point Singularity Launcher > --- INVENTORY (25) --- Reinforced Antimatter Reactor Light Quantum Reactor Light Quantum Reactor Light Quantum Reactor Advanced Cryofiber Web Advanced Sensor Array Advanced Sensor Array Advanced Signal Interpreter Advanced Target Analyzer Propulsion Shielding Heavy Armor Plating Experimental Thermal Shield Experimental EM Shield Gamma Rifle Gamma Rifle Helical Railgun Fusion Bomb Launcher Improved Plasma Cutter Peak State ------------ > --- POWER ------------ Quantum Reactor Light Quantum Reactor Light Quantum Reactor > --- PROPULSION ------- Armored Heavy Treads Enhanced Armored Heavy Treads High-density Centrium Heavy Treads > --- UTILITY ---------- Advanced Cryofiber Web Experimental Heat Sink Huge Storage Unit Advanced Energy Well Spectral Analyzer Experimental Targeting Computer Experimental Core Analyzer SHELL Armor Graphene Brace Experimental EM Shield > --- WEAPON ----------- Cooled Nova Cannon Null Cannon Improved Potential Cannon > --- INVENTORY -------- Micro Antimatter Reactor Micro Antimatter Reactor Light Quantum Reactor Light Quantum Reactor Light Quantum Reactor Light Quantum Reactor Advanced Heavy Siege Treads Advanced Heavy Siege Treads Advanced Cryofiber Web Advanced Heat Sink Advanced Energy Well Advanced Sensor Array Advanced Sensor Array Advanced Signal Interpreter Advanced Target Analyzer Experimental Thermal Shield Gamma Rifle Gamma Rifle Gamma Rifle Fusion Bomb Launcher Point Singularity Launcher Improved Plasma Cutter [Rating: 248] Favorites ----------- Power Quantum Reactor Engine Heavy Deuterium Engine Power Core Neutrino Core Reactor Quantum Reactor Propulsion Light Treads Treads Light Treads Leg Myomer Leg Wheel Wheel Utility Huge Storage Unit Device Improved Sensor Array Storage Huge Storage Unit Processor Improved Signal Interpreter Hackware Advanced System Shield Protection Improved Medium Armor Plating Weapon Advanced Beam Rifle Energy Gun Advanced Beam Rifle Energy Cannon Cooled Nova Cannon Ballistic Gun Advanced KE Penetrator Ballistic Cannon Hardcell Cannon Launcher Point Singularity Launcher Special Weapon Mining Laser Build | -11 -10 -10 -8 -7 -7 -7 -7 -6 -6 -6 -6 -6 -6 -5 -5 -5 -5 -4 -4 -3 -3 -2 -2 -1 -1 -1 ------- Run | Yrd Mat Sub Mat Fac Low Low Zio Pro Fac Ext Cet Arc Hub Fac Upp Upp War Pro Fac Res Qua Res Tes Acc Gar Acc Slots Evolved 18 | . . . 4 2 . . . . 2 . . . . 2 . . . . 2 2 . 2 . 2 . . Power 2 | . . . . 1 . . . . . . . . . . . . . . . . . 1 . . . . Propulsion 4 | . . . 2 . . . . . . . . . . 2 . . . . . . . . . . . . Utility 10 | . . . 1 1 . . . . 2 . . . . . . . . . 2 2 . . . 2 . . Weapon 2 | . . . 1 . . . . . . . . . . . . . . . . . . 1 . . . . Parts Attached 255 | 6 6 10 18 18 12 2 2 2 12 22 6 12 12 8 4 1 7 6 8 7 6 28 18 1 5 16 Power 31 | 1 2 . 3 2 1 . . 1 2 2 1 . 3 . . . 1 . . . . 4 2 . 3 3 Engine 9 | 1 . . 3 2 1 . . . 1 1 . . . . . . . . . . . . . . . . Core 6 | . 2 . . . . . . 1 1 1 . . . . . . . . . . . . 1 . . . Reactor 16 | . . . . . . . . . . . 1 . 3 . . . 1 . . . . 4 1 . 3 3 Propulsion 61 | 2 . 3 7 6 2 1 . . 3 7 2 . 1 3 2 . . 3 1 4 3 5 2 . . 4 Treads 45 | 2 . . 5 5 2 1 . . . 7 2 . 1 3 2 . . . 1 2 2 5 2 . . 3 Leg 4 | . . . . . . . . . . . . . . . . . . 3 . . . . . . . 1 Wheel 12 | . . 3 2 1 . . . . 3 . . . . . . . . . . 2 1 . . . . . Hover . | . . . . . . . . . . . . . . . . . . . . . . . . . . . Flight . | . . . . . . . . . . . . . . . . . . . . . . . . . . . Utility 85 | 1 2 1 3 6 4 1 1 . 6 6 2 7 8 2 . . 5 1 5 3 1 9 3 1 2 5 Device 49 | . 1 . 2 4 1 1 . . 4 5 . 6 6 . . . 4 1 1 1 . 7 2 . 1 2 Storage 9 | 1 1 . 1 . . . 1 . 1 . . . . . . . . . 1 . . 1 . . . 2 Processor 10 | . . . . 2 . . . . . . . . 1 . . . 1 . 1 2 1 . 1 . 1 . Hackware 1 | . . . . . . . . . . . . . . . . . . . 1 . . . . . . . Protection 16 | . . 1 . . 3 . . . 1 1 2 1 1 2 . . . . 1 . . 1 . 1 . 1 Artifact . | . . . . . . . . . . . . . . . . . . . . . . . . . . . Weapon 78 | 2 2 6 5 4 5 . 1 1 1 7 1 5 . 3 2 1 1 2 2 . 2 10 11 . . 4 Energy Gun 27 | 2 2 1 3 1 3 . . . . 2 . . . . 1 . . . . . 1 4 6 . . 1 Energy Cannon 13 | . . 2 1 1 1 . . . 1 1 1 . . . . . . . 1 . . 1 3 . . . Ballistic Gun 15 | . . . . . 1 . 1 . . 3 . 5 . 3 . . . . . . . . . . . 2 Ballistic Cannon 13 | . . 1 . 1 . . . . . . . . . . . 1 . 2 1 . 1 4 2 . . . Launcher 6 | . . 1 1 . . . . 1 . . . . . . 1 . . . . . . 1 . . . 1 Special Weapon 4 | . . 1 . 1 . . . . . 1 . . . . . . 1 . . . . . . . . . Impact Weapon . | . . . . . . . . . . . . . . . . . . . . . . . . . . . Slashing Weapon . | . . . . . . . . . . . . . . . . . . . . . . . . . . . Piercing Weapon . | . . . . . . . . . . . . . . . . . . . . . . . . . . . Special Melee Weapon . | . . . . . . . . . . . . . . . . . . . . . . . . . . . Unidentified Prototypes 41 | . . . 4 2 . . . . . 1 3 2 4 . . . 5 . 2 2 1 2 9 1 . 3 Corrupted Parts 13 | . . . . . . . 1 . . . 1 4 3 . . . . . . . . . 4 . . . System Corruption 98 | . . . . . . . 8 . . . 9 18 23 . . . . . . . . . 40 . . . Parts Lost 85 | . . 3 3 3 11 . . . 10 3 2 . 6 4 . . . 6 5 2 5 1 1 . 7 13 Power 16 | . . . 1 . 2 . . . 1 1 . . 1 1 . . . . . . 1 . . . 3 5 Propulsion 29 | . . 3 2 2 3 . . . 5 1 . . 1 1 . . . 3 2 1 1 . . . . 4 Utility 20 | . . . . . 2 . . . 4 1 2 . 1 . . . . . 2 1 3 1 . . 2 1 Weapon 20 | . . . . 1 4 . . . . . . . 3 2 . . . 3 1 . . . 1 . 2 3 Highest Loss Streak 8 | . . 2 1 2 8 . . . 8 1 2 . 5 3 . . . 5 2 2 2 1 1 . 4 5 To Critical Strikes . | . . . . . . . . . . . . . . . . . . . . . . . . . . . Average Backups 21 | 1 10 14 19 24 22 24 25 24 22 23 23 21 21 22 23 23 23 23 23 22 23 21 19 19 19 21 Power 2 | . 2 2 1 . . . 1 1 1 3 2 2 1 2 1 1 1 3 2 4 2 . . 2 3 4 Propulsion 2 | . 2 . 2 4 2 1 2 2 1 1 2 2 2 1 3 1 1 1 . 1 2 3 3 3 3 1 Utility 10 | . 2 4 6 9 12 14 13 13 10 10 9 11 11 13 13 13 13 13 14 13 12 10 9 7 6 8 Weapon 5 | . 3 6 7 8 5 6 8 7 7 7 7 4 4 3 3 4 5 3 3 1 2 4 4 5 4 4 Tool/Special . | . . . . . . . . . . . . . . . . . . . . . . . . . . . Unused Backups 66 | . . 3 7 5 1 3 . 1 1 4 6 . . 1 1 2 2 1 2 . 3 11 3 . . 9 Power 19 | . . . 2 . . . . . . 3 2 . . 1 1 . . . 2 . 2 1 1 . . 4 Propulsion 7 | . . . 1 . . . . . . . 1 . . . . 2 . . . . . 3 . . . . Utility 21 | . . 1 1 2 1 2 . . . 1 . . . . . . 2 . . . 1 4 2 . . 4 Weapon 19 | . . 2 3 3 . 1 . 1 1 . 3 . . . . . . 1 . . . 3 . . . 1 Tool/Special . | . . . . . . . . . . . . . . . . . . . . . . . . . . . Average Slot Usage (%) 89 | . 99 99 96 99 90 100 96 100 95 98 93 80 87 83 88 94 85 79 83 84 91 85 85 80 74 76 Engine 4 | . 5 . 8 15 12 15 15 7 2 5 4 . . . . . . . . . . . . . . . Core 1 | . 8 14 . . . . . 6 9 6 6 5 4 . . . . . . . . . . . . . Reactor 5 | . . . . . . . . . . . 1 5 5 10 11 11 8 5 5 4 6 12 12 12 11 11 Treads 19 | . 28 6 10 24 29 30 30 30 18 24 20 11 11 16 22 27 22 14 13 13 19 14 13 12 12 11 Wheel 2 | . . 20 22 5 . . . . 4 . . . . . . . . . . 4 7 . . . . . Device 12 | . 13 . 17 15 9 7 7 7 19 19 16 10 10 9 10 11 10 10 10 17 13 15 20 17 14 15 Storage 6 | . 14 14 9 7 6 7 7 7 6 6 6 5 5 5 5 5 5 5 5 4 4 4 4 4 4 7 Processor 10 | . . . . 6 7 7 7 7 6 6 6 5 5 10 11 11 11 16 20 19 23 20 17 16 16 14 Protection 4 | . . 13 . . 3 6 7 6 5 6 9 11 10 6 5 5 5 . 3 2 4 1 . 2 4 3 Energy Gun 8 | . 28 5 25 22 17 15 12 7 12 7 . . . . . 3 . . . . . 12 13 14 7 . Energy Cannon 2 | . . 13 1 . . . . 6 6 4 . . . . . . . 1 3 . . . 1 1 2 9 Ballistic Gun 5 | . . . . . . 7 6 7 . 6 19 21 27 23 20 17 21 3 . . . . . . . . Ballistic Cannon 1 | . . . . . . . . . . . . . . . . . . 11 9 13 8 2 2 . . . Peak Build Rating 248 | 6 12 16 35 51 54 45 45 51 62 67 112 137 141 151 128 118 142 142 155 148 153 199 207 219 236 248 Average Rating 109 | 4 9 14 30 45 43 44 43 49 57 60 83 124 133 139 126 116 132 129 138 134 137 182 198 214 217 228 On Entrance 98 | . 6 12 16 35 51 42 45 45 51 52 65 109 136 130 127 116 118 142 132 122 142 129 193 206 219 227 Avg Prop Armor Cover (%) 11 | . . 10 12 18 . . . . 6 8 . . . . . . . 9 9 12 13 . . . . 3 Naked Turns . | . . . . . . . . . . . . . . . . . . . . . . . . . . . Heaviest Build 215 | 12 32 45 99 115 121 108 108 128 132 137 142 160 160 154 157 151 160 152 154 162 168 183 193 197 208 215 Greatest Support 240 | 40 40 40 42 92 92 96 96 96 96 100 160 160 160 240 206 177 206 188 138 114 182 225 230 230 230 230 Greatest Overweight (x) 16 | 3 . 3 3 6 1 1 1 1 12 6 1 . . . . . . 1 4 16 8 1 . . . 1 Average Overweight (x) . | . . 1 1 2 . 1 1 1 2 1 . . . . . . . . 1 5 4 . . . . . Largest Inventory Capacity 25 | 8 15 15 25 25 25 25 25 25 25 25 25 25 25 25 25 25 25 25 25 25 25 25 25 25 25 25 Average Capacity 24 | 7 14 15 21 25 24 25 25 25 25 25 25 25 25 25 25 25 25 25 25 25 25 25 25 25 25 25 Most Carried 25 | 2 15 15 25 25 25 25 25 25 25 25 25 25 25 25 25 25 25 25 25 25 25 25 25 25 25 25 Average Carried 23 | 1 10 14 19 23 22 24 25 24 23 24 24 24 24 24 24 24 24 24 24 22 24 24 24 23 23 23 Final Capacity 25 | 8 15 15 25 25 25 25 25 25 25 25 25 25 25 25 25 25 25 25 25 25 25 25 25 25 25 25 Final Carried 25 | 2 15 15 25 25 23 25 25 25 22 25 25 25 24 24 25 25 25 24 22 25 25 24 25 23 22 19 Class Distribution -------------------- 32% | Scavenger-Skirmisher 22% | Scavenger-Tank 21% | Scavenger-Gunner 8% | Mutant 6% | Skirmisher 5% | Scavenger-Mutant Dominant Class ---------------- Mutant | -10/Materials Mutant | -10/Subcaves Scavenger-Gunner | -8/Materials Skirmisher | -7/Factory Skirmisher | -7/Lower Caves Scavenger-Skirmisher | -7/Lower Caves Scavenger-Skirmisher | -7/Zion Scavenger-Skirmisher | -6/Proximity Caves Scavenger-Skirmisher | -6/Factory Scavenger-Tank | -6/Extension Scavenger-Tank | -6/Cetus Scavenger-Tank | -6/Archives Scavenger-Tank | -6/Hub_04(d) Scavenger-Skirmisher | -5/Factory Scavenger-Skirmisher | -5/Upper Caves Scavenger-Skirmisher | -5/Upper Caves Scavenger-Tank | -5/Warlord Scavenger-Gunner | -4/Proximity Caves Scavenger-Tank | -4/Factory Scavenger-Gunner | -3/Research Scavenger-Gunner | -3/Quarantine Scavenger-Gunner | -2/Research Scavenger-Tank | -2/Testing Scavenger-Tank | -1/Access Scavenger-Mutant | -1/Garrison Scavenger-Skirmisher | -1/Access Resources | -11 -10 -10 -8 -7 -7 -7 -7 -6 -6 -6 -6 -6 -6 -5 -5 -5 -5 -4 -4 -3 -3 -2 -2 -1 -1 -1 ----------- Run | Yrd Mat Sub Mat Fac Low Low Zio Pro Fac Ext Cet Arc Hub Fac Upp Upp War Pro Fac Res Qua Res Tes Acc Gar Acc Matter Collected 16019 | 186 144 120 235 215 459 354 62 172 262 650 302 494 1390 1252 422 20 671 388 556 1047 1247 1385 1245 . 368 2373 Remotely 2551 | . . . . . . . . . . . . . 1007 746 . . . . 322 476 . . . . . . Salvage Created 30041 | . 907 420 1306 540 206 186 . 174 823 1028 151 380 2019 1905 533 . 1098 286 464 751 926 2416 2132 . 1396 9994 Parts 1178 | . 39 20 62 33 9 5 . 9 24 39 8 26 108 113 26 . 49 7 30 37 41 92 76 . 39 286 Haulers Intercepted 9 | . 2 . 4 . . . . . . . . . . . . . . . . 1 1 . . . . 1 Recyclers Shooed 4 | . . . 2 . . . . . 2 . . . . . . . . . . . . . . . . . Parts Field Recycled . | . . . . . . . . . . . . . . . . . . . . . . . . . . . Retrieved Matter . | . . . . . . . . . . . . . . . . . . . . . . . . . . . Parts Self-Destructed 64 | . . 8 . . 5 4 3 22 . . . . . . 17 . . 5 . . . . . . . . Prevented 7 | . . . . . 2 . . . . . . . . . 5 . . . . . . . . . . . Parts Restored . | . . . . . . . . . . . . . . . . . . . . . . . . . . . Kills | -11 -10 -10 -8 -7 -7 -7 -7 -6 -6 -6 -6 -6 -6 -5 -5 -5 -5 -4 -4 -3 -3 -2 -2 -1 -1 -1 ------- Run | Yrd Mat Sub Mat Fac Low Low Zio Pro Fac Ext Cet Arc Hub Fac Upp Upp War Pro Fac Res Qua Res Tes Acc Gar Acc Combat Hostiles Destroyed 473 | . 16 9 21 11 8 1 . 3 10 15 2 1 25 30 12 . 17 7 13 7 19 31 27 . 35 153 Guns 159 | . 14 3 18 11 3 1 . 1 1 4 2 1 25 28 5 . 17 . . . . 12 8 . 5 . Cannons 170 | . . 3 1 . . . . 1 5 8 . . . . . . . 7 12 7 19 3 10 . 12 82 AOE 90 | . . 3 . . 4 . . 1 4 . . . . 2 7 . . . . . . 3 . . 12 54 Classes Destroyed 30 | . 5 5 2 1 2 1 . . 2 . . . 2 2 . . 2 . . . . 2 1 . 1 2 Worker 34 | . 1 . . . . . . . 3 . . . 6 3 . . . . 1 5 . 1 . . . 14 Builder 32 | . 1 . 2 1 . . . . . . . . 3 3 . . . . 2 3 1 . . . . 16 Tunneler 3 | . . . . . . . . . . . . . . 1 . . . . . . . 2 . . . . Hauler 9 | . 2 . 4 . . . . . . . . . . . . . . . . 1 1 . . . . 1 Recycler 15 | . 1 . 1 . . . . . 2 1 . . 1 1 . . . . . 1 . . . . . 7 Carrier 12 | . . . . . . . . . . . . . . . . . . . . . . . . . . 12 Mechanic 6 | . . . . . . . . . . . . . . . . . 1 . . . . . . . . 5 Operator 14 | . . . 1 1 . . . . . 1 . 9 1 1 . . . . . . . . . . . . Watcher 12 | . . . . . . . . . 2 . . . . 1 . . . . . 2 2 . 1 . . 4 Swarmer 47 | . . 2 4 1 3 . . 2 . 3 . . . 7 7 . 4 . 5 . 3 4 2 . . . Cutter 4 | . . . . . . . . . . . . . . . . . . . . . . . . . 4 . Saboteur 6 | . . . . . . . . . . . . . . . . . . . . . . . . . . 6 Grunt 178 | . 16 3 11 7 . 1 . . 5 2 . . 9 6 4 . 6 2 . 2 7 6 11 . 24 56 Brawler 14 | . . . . . . . . . . . . . . 1 . . 2 . . . . 1 . . . 10 Duelist 14 | . . . . . . . . . 2 . . . 1 2 . . 1 . . . . . . . . 8 Protector 11 | . . . . . . . . . . . . . 3 . . . 1 . . . . . . . . 7 Researcher 1 | . . . . . . . . . . . . . . . . . . . . . . . 1 . . . Sentry 34 | . . 1 5 1 1 . . 1 . 7 . 1 3 7 . . . 1 3 . . 1 . . . 2 Demolisher 2 | . . . . . . . . . . . . . . . . . . . . . . 2 . . . . Hunter 42 | . . . 1 . 1 . . . . 2 . . . 5 1 . 2 4 . 2 . 4 3 . 4 13 Programmer 72 | . . . . 2 . . . . 3 . . . 2 2 . . . . 5 3 9 1 10 . 2 33 Heavy 1 | . . . . . . . . . . . . . 1 . . . . . . . . . . . . . Behemoth 7 | . . . . . 1 . . . . 1 . . . . . . . . . . . . . . 1 4 Cetus Guard 2 | . . . . . . . . . . . 2 . . . . . . . . . . . . . . . Lightning 6 | . . . . . . . . . . . . . 6 . . . . . . . . . . . . . Investigator 1 | . . . . . . . . . . . . . . . . . . . . . . . . . . 1 Striker 12 | . . . . . . . . . . . . . . . . . . . . . . 6 1 . . 5 Executioner 16 | . . . . . . . . . . . . . . . . . 1 . . . . 6 . . . 9 Artisan 1 | . . 1 . . . . . . . . . . . . . . . . . . . . . . . . Cobbler 1 | . . 1 . . . . . . . . . . . . . . . . . . . . . . . . Subdweller 3 | . . 3 . . . . . . . . . . . . . . . . . . . . . . . . Samaritan 3 | . . . . . . 1 . . . . . . . . 1 . . 1 . . . . . . . . Thief 2 | . . . . . 2 . . . . . . . . . . . . . . . . . . . . . Thug 1 | . . . . . . . . . . . . . . . . . 1 . . . . . . . . . Savage 1 | . . . . . . . . . . . . . . . . . . . . . . . 1 . . . Best Kill Streak 31 | . 3 5 5 5 3 1 . 2 9 4 1 4 16 10 4 . 6 5 3 4 6 7 7 . 16 31 Combat Bots Only 23 | . 2 5 3 4 3 1 . 2 5 4 1 1 8 7 4 . 6 5 3 2 6 7 7 . 16 23 Max Kills in Single Turn 8 | . 1 2 2 2 2 1 . 1 8 1 1 1 3 4 3 . 3 1 1 2 1 2 1 . 3 5 Gunslinging 2 | . . . 1 1 . . . . . . . . 1 1 . . 2 . . . . 1 . . . . Exploded 4 | . . 2 . . 2 . . 1 4 . . . . 1 3 . . . . . . 1 . . 3 3 Melee . | . . . . . . . . . . . . . . . . . . . . . . . . . . . Uniques/NPCs Destroyed . | . . . . . . . . . . . . . . . . . . . . . . . . . . . Combat | -11 -10 -10 -8 -7 -7 -7 -7 -6 -6 -6 -6 -6 -6 -5 -5 -5 -5 -4 -4 -3 -3 -2 -2 -1 -1 -1 -------- Run | Yrd Mat Sub Mat Fac Low Low Zio Pro Fac Ext Cet Arc Hub Fac Upp Upp War Pro Fac Res Qua Res Tes Acc Gar Acc Hostile Shots Fired 2996 | . 62 26 89 69 112 . . 24 68 258 24 8 174 186 27 . 35 128 71 24 133 180 188 . 221 889 Missed 709 | . 18 7 23 22 36 . . 11 9 92 6 1 18 42 8 . 14 32 17 11 44 34 39 . 49 176 Hits 2287 | . 44 19 66 47 76 . . 13 59 166 18 7 156 144 19 . 21 96 54 13 89 146 149 . 172 713 Melee 44 | . . . . . 4 . . . 7 . . . 2 6 . . 6 . . . . 6 . . 6 7 Projectile 2243 | . 44 19 66 47 72 . . 13 52 166 18 7 154 138 19 . 15 96 54 13 89 140 149 . 166 706 AOE 11 | . . . . . . . . . . . . . . . . . . . . . . 6 . . 4 1 Critical Strikes 128 | . . . 4 . . . . . 4 1 4 1 16 8 . . 2 2 1 . 7 7 8 . 12 51 Actively Blocked 48 | . . . . . . . . . . . . . . . . . . . . . . 1 8 . 6 33 Part Disruptions 2 | . . . . . . . . . . . . . . . . . . . 1 . 1 . . . . . Damage Taken 35052 | . 541 281 951 652 1592 . . 184 1153 898 362 192 4110 2754 333 . 518 1404 1272 224 1138 2083 1240 . 3868 9302 Core 2295 | . 184 56 205 48 149 . . 29 95 63 25 . 327 212 . . 6 146 87 . 80 203 47 . 63 270 Absorbed by Shields 9187 | . . . . . . . . . 84 562 158 . . . . . 188 414 . . . 1403 1026 . 377 4975 Reduced by Siege Mode 2583 | . . . . . . . . . . . . 7 387 217 27 . 34 127 1 . . 311 132 . 303 1037 Ignored by Resistances 5043 | . . . . . . . . . . 90 120 . . 63 . . . . 259 72 795 755 1310 . 135 1444 Regen/Repaired (Parts) 5132 | . . . . . . . . . . . . . . . . . 707 . . . . 69 . . 1659 2697 Core Remaining (%) 68 | 100 . 4 62 . . . . 67 . . . . 40 . . . . 63 92 . 93 . 82 . . 79 Volleys Fired 1275 | . 72 45 70 26 33 7 . 8 30 45 15 24 57 49 31 3 34 20 63 20 73 75 81 . 59 335 Largest 5 | . 2 2 3 3 3 2 . 3 3 3 3 3 5 5 4 1 4 4 3 3 3 4 4 . 4 2 Hottest 300 | . 115 160 205 183 183 122 . 166 207 246 84 105 175 161 136 90 136 154 157 157 161 300 300 . 300 200 Shots Fired 2721 | . 142 53 191 66 71 18 1 17 55 109 44 73 248 194 53 3 130 59 74 56 135 192 173 . 99 465 Gun 1650 | . 142 13 174 62 59 18 1 9 25 66 43 73 244 192 42 . 130 18 . . . 166 118 . 55 . Cannon 984 | . . 25 17 4 1 . . 6 29 39 . . 4 2 . 3 . 41 74 56 135 23 55 . 37 433 Launcher 71 | . . 3 . . 11 . . 2 1 1 . . . . 11 . . . . . . 3 . . 7 32 Special 16 | . . 12 . . . . . . . 3 1 . . . . . . . . . . . . . . . Kinetic 1107 | . . . . . . . 1 4 . 19 43 73 244 192 42 . 130 58 48 56 135 23 39 . . . Thermal 1195 | . 142 50 191 66 60 18 . 11 54 86 . . 4 2 . 3 . 1 21 . . . 16 . 37 433 Explosive 59 | . . 3 . . 11 . . 2 1 1 . . . . . . . . . . . 3 . . 7 31 Electromagnetic 355 | . . . . . . . . . . . . . . . 11 . . . 5 . . 166 118 . 55 . Robot Hit Streak 45 | . 23 6 13 12 24 8 2 2 20 15 11 16 13 23 14 . 21 32 16 6 11 38 19 . 25 45 Robot Miss Streak 6 | . 4 2 2 2 4 1 . 2 3 3 3 3 6 3 1 . 1 1 1 3 2 3 3 . 2 3 Penetration Max 1 | . . . . . . . . . . 1 1 1 1 1 . . 1 1 1 . 1 . . . . . Secondary Targets 42 | . 2 . 1 2 . . . . . . . . 7 10 2 . 7 . . . . 5 3 . 3 . Max Gunslinging Chain 2 | . 1 . 1 1 . . . . . . . . 2 2 1 . 2 . . . . 1 1 . 1 . Capacitor 22 | . . . . . . . . . . . . . . . . . . . 22 . . . . . . . Shots Hit Robots 1852 | . 103 26 129 40 50 10 1 6 37 77 30 46 139 150 29 . 114 53 44 29 64 151 116 . 84 324 Core Hits 944 | . 38 16 39 25 16 5 . 5 39 26 14 20 74 81 21 . 48 22 18 25 34 70 49 . 59 200 Critical Kills 43 | . . . . . . . . . . . . 5 8 12 . . 5 . . . . . . . . 13 Critical Parts Destroyed 56 | . . . . . . . . . . . . 2 16 17 5 . 16 . . . . . . . . . Critical Strikes 204 | . 14 . 10 3 5 1 . . 1 5 . 8 24 31 5 . 21 5 3 8 20 11 12 . 4 13 Burn 39 | . 14 . 10 3 5 1 . . 1 5 . . . . . . . . . . . . . . . . Meltdown 13 | . . . . . . . . . . . . . . . . . . . . . . . . . . 13 Destroy 89 | . . . . . . . . . . . . 8 24 31 5 . 21 . . . . . . . . . Blast 40 | . . . . . . . . . . . . . . . . . . 5 2 8 20 1 4 . . . Corrupt 23 | . . . . . . . . . . . . . . . . . . . 1 . . 10 8 . 4 . Melee Attacks . | . . . . . . . . . . . . . . . . . . . . . . . . . . . Impact . | . . . . . . . . . . . . . . . . . . . . . . . . . . . Slashing . | . . . . . . . . . . . . . . . . . . . . . . . . . . . Piercing . | . . . . . . . . . . . . . . . . . . . . . . . . . . . Sneak Attacks . | . . . . . . . . . . . . . . . . . . . . . . . . . . . Combat Hostiles . | . . . . . . . . . . . . . . . . . . . . . . . . . . . Follow-up Attacks . | . . . . . . . . . . . . . . . . . . . . . . . . . . . Damage Inflicted 101735 | . 1380 704 2730 885 1700 200 23 277 2368 1921 757 1163 4929 4730 924 . 3800 1427 2058 1540 2960 4851 4290 . 8490 47628 Guns 30741 | . 1380 151 2404 875 970 200 23 80 468 1053 757 1163 4733 4260 606 . 3800 358 . . . 3496 2540 . 1424 . Cannons 43543 | . . 418 326 . . . . 48 608 843 . . . . . . . 1069 1963 1540 2955 731 1750 . 3127 28165 Explosions 27332 | . . 135 . . 705 . . 149 1290 . . . 196 470 318 . . . 43 . . 624 . . 3939 19463 Melee . | . . . . . . . . . . . . . . . . . . . . . . . . . . . Ramming 119 | . . . . 10 25 . . . 2 25 . . . . . . . . 52 . 5 . . . . . Kinetic 24497 | . . . . . . . 23 20 . 285 757 1163 4733 4260 606 . 3800 1387 1316 1540 2955 731 921 . . . Thermal 59577 | . 1380 569 2730 875 970 200 . 108 1076 1611 . . . . 21 . . 40 472 . . . 829 . 3526 45170 Explosive 8975 | . . 135 . . 705 . . 149 1018 . . . . 346 . . . . . . . 624 . . 3540 2458 Electromagnetic 8567 | . . . . . . . . . 272 . . . 196 124 297 . . . 218 . . 3496 2540 . 1424 . Impact . | . . . . . . . . . . . . . . . . . . . . . . . . . . . Slashing . | . . . . . . . . . . . . . . . . . . . . . . . . . . . Piercing . | . . . . . . . . . . . . . . . . . . . . . . . . . . . Highest Corruption 78 | . . . . 3 3 3 8 8 3 3 12 20 78 1 1 1 1 . 7 1 2 1 45 . 2 5 Average Corruption 6 | . . . . 3 3 3 6 8 2 3 7 12 21 1 1 1 1 . 2 1 1 1 31 . 2 3 Corruption Purged 24 | . . . . . . . . . . . . 19 . . . . . . . . . . . . . 5 Corruption Blocked . | . . . . . . . . . . . . . . . . . . . . . . . . . . . Effects 466 | . . . . 7 35 43 11 46 3 39 16 25 57 4 13 7 1 . 12 6 20 . 81 . 7 33 Message Errors 109 | . . . . 1 10 9 3 10 . 13 5 5 11 1 4 1 . . 5 1 2 . 19 . 3 6 Matter Fused 114 | . . . . 2 12 11 . 12 . 12 5 9 10 2 2 3 1 . 5 1 4 . 16 . . 7 Heat Flow Errors 53 | . . . . . 3 8 1 5 1 1 1 1 4 . 2 . . . . . 4 . 13 . 3 6 Energy Discharges 47 | . . . . 1 3 3 4 5 . 4 2 2 4 . 1 1 . . 1 2 3 . 6 . 1 4 Parts Rejected 6 | . . . . . 1 . . . . . . . 2 . . . . . . . 1 . 1 . . 1 Parts Fused 7 | . . . . . . . . 2 . 1 . . 1 . 2 . . . . . 1 . . . . . Data Loss (minor) 55 | . . . . 1 6 4 2 7 1 4 1 3 6 1 1 1 . . . 1 1 . 11 . . 4 Data Loss (major) 16 | . . . . 2 . 3 . . . 1 1 2 . . . 1 . . . 1 2 . 2 . . 1 Misfires 20 | . . . . . . 4 1 5 1 1 1 2 1 . 1 . . . 1 . . . . . . 2 Alerts 6 | . . . . . . 1 . . . . . . . . . . . . . . 2 . 3 . . . Misdirections 6 | . . . . . . . . . . . . . 4 . . . . . . . . . 2 . . . Weapon Failures 27 | . . . . . . . . . . 2 . 1 14 . . . . . . . . . 8 . . 2 Overload Shots 23 | . . . . . . . . . . . . . . . . . . . . . . . . . . 23 Effects 1 | . . . . . . . . . . . . . . . . . . . . . . . . . . 1 Short Circuit 1 | . . . . . . . . . . . . . . . . . . . . . . . . . . 1 Overflow Damage 7394 | . . 12 7 . 46 . . . 82 1 . . 66 93 5 . . 12 228 29 92 8 191 . 566 5956 Projectiles 4146 | . . 12 7 . . . . . 14 1 . . . . . . . 12 200 29 92 . 191 . 167 3421 Explosions 3233 | . . . . . 31 . . . 68 . . . 66 93 5 . . . 28 . . 8 . . 399 2535 Melee 15 | . . . . . 15 . . . . . . . . . . . . . . . . . . . . . Knockbacks 90 | . . . . 1 . . . . . . . . . . . . . 12 9 4 42 9 13 . . . Impact 1 | . . . . 1 . . . . . . . . . . . . . . . . . . . . . . Kinetic 76 | . . . . . . . . . . . . . . . . . . 12 9 4 33 9 9 . . . Secondary 13 | . . . . . . . . . . . . . . . . . . . . . 9 . 4 . . . Self-Inflicted Damage 844 | . . . . . 265 . . . 53 . . . 99 . . . . . 48 . . . . . 379 . Shots 15 | . . . . . 8 . . . 2 . . . 1 . . . . . 1 . . . . . 3 . Rammed 18 | . . . . 1 1 . . . 2 1 . . . . . . . . 12 . 1 . . . . . Targets Rammed 18 | . . . . 1 1 . . . 2 1 . . . . . . . . 12 . 1 . . . . . Kicked . | . . . . . . . . . . . . . . . . . . . . . . . . . . . Crushed . | . . . . . . . . . . . . . . . . . . . . . . . . . . . Highest Temperature 504 | . 180 83 316 258 333 327 92 190 350 330 216 223 337 232 147 24 . . 313 5 175 504 185 . 168 52 Average Temperature 86 | . 46 26 99 82 137 102 46 54 139 113 123 67 80 58 29 13 . . 129 5 90 159 43 . 66 33 Received Heat Transfer 4833 | . 303 63 504 270 150 . . . 345 313 14 36 641 436 72 . 27 144 144 84 224 52 126 . 153 732 Effects 14 | . . . . . 2 1 . . 2 . . . 2 . . . . . . . . 7 . . . . Shutdowns 3 | . . . . . . . . . . . . . . . . . . . . . . 3 . . . . Energy Bleed 4 | . . . . . 1 1 . . 2 . . . . . . . . . . . . . . . . . Interference 3 | . . . . . 1 . . . . . . . 2 . . . . . . . . . . . . . Damage (major) 4 | . . . . . . . . . . . . . . . . . . . . . . 4 . . . . Siege Activations 72 | . . . . . . . . . . . . 1 5 8 3 . 5 3 2 . 1 7 10 . 7 20 Total Turns 2871 | . . . . . . . . . . . . 10 149 123 65 . 51 65 22 . 2 121 189 . 147 1927 Longest Duration 922 | . . . . . . . . . . . . 10 78 48 30 . 22 35 11 . 2 43 52 . 56 922 Martial Activations . | . . . . . . . . . . . . . . . . . . . . . . . . . . . Shielding Activations . | . . . . . . . . . . . . . . . . . . . . . . . . . . . Robots Disrupted 1 | . . . . . . . . . . . . . . . . . . . . . . 1 . . . . Combat Hostiles 1 | . . . . . . . . . . . . . . . . . . . . . . 1 . . . . Robots Corrupted 33 | . . . . . 1 . . . . . . . . . . . . . 1 . 1 14 10 . 6 . Combat Hostiles 30 | . . . . . 1 . . . . . . . . . . . . . 1 . . 13 9 . 6 . Parts Fried 114 | . . . . . 3 . . . . . . . . 1 . . . . 2 . 3 51 33 . 21 . Impact Corruptions 4 | . . . . . 1 . . . . . . . . . . . . . . . 3 . . . . . Robots Melted 28 | . 2 . 2 . . . . . . 3 . . . . . . . . . . . . . . . 21 Combat Hostiles 24 | . 2 . 2 . . . . . . 3 . . . . . . . . . . . . . . . 17 Parts Melted 106 | . 10 1 17 4 1 3 . . 8 14 . . . . . . . . . 2 . . . . . 46 Heat Transferred 50716 | . 4847 876 5479 1776 1998 444 . 211 1517 3163 . . . . 50 . . . . . . . 459 . 1810 28086 Parts Sabotaged 2 | . . . . . . . . . . . . . . . . . . . . . . . . . . 2 Parts Stolen 2 | . . . . . 2 . . . . . . . . . . . . . . . . . . . . . Parts Stripped . | . . . . . . . . . . . . . . . . . . . . . . . . . . . Power Chain Reactions 1 | . . . . . . . . . . . . . . . 1 . . . . . . . . . . . Alert | -11 -10 -10 -8 -7 -7 -7 -7 -6 -6 -6 -6 -6 -6 -5 -5 -5 -5 -4 -4 -3 -3 -2 -2 -1 -1 -1 ------- Run | Yrd Mat Sub Mat Fac Low Low Zio Pro Fac Ext Cet Arc Hub Fac Upp Upp War Pro Fac Res Qua Res Tes Acc Gar Acc Maximum Alert Level 5 | . . . 1 . . . . . 1 1 . . 4 4 . . . . 1 . 1 2 2 1 4 5 Low Security (%) 52 | 100 100 . 96 100 . . . . 52 66 100 100 32 . . . . . 91 100 61 56 . . . . Level 1 16 | . . . 3 . . . . . 47 33 . . 21 5 . . . . 8 . 38 40 54 100 7 . Level 2 9 | . . . . . . . . . . . . . 15 58 . . . . . . . 3 45 . 30 7 Level 3 6 | . . . . . . . . . . . . . 23 33 . . . . . . . . . . 17 19 Level 4 5 | . . . . . . . . . . . . . 7 2 . . . . . . . . . . 45 18 Level 5 3 | . . . . . . . . . . . . . . . . . . . . . . . . . . 17 High Security 6 | . . . . . . . . . . . . . . . . . . . . . . . . . . 37 Max Security . | . . . . . . . . . . . . . . . . . . . . . . . . . . . Sterilizations 1 | . . . . . . . . . . . . . . . . . . . . . . . . . . 1 Peak Influence 5033 | . 169 . 224 140 . . . . 278 355 183 161 1137 1111 . . . . 238 120 291 517 596 354 1224 5033 Initial 734 | . . . . 98 . . . . 4 20 183 4 . 548 . . . . . 120 15 149 288 354 286 734 Average 578 | . 73 . 98 37 . . . . 124 111 107 72 442 655 . . . . 50 67 122 186 380 347 914 2295 Influence Increases 16831 | . 596 130 699 349 150 30 . 271 520 759 335 303 1528 1044 275 . 330 160 511 332 679 826 863 24 1008 5109 Destroy 0b10 Robot/C 9960 | . 320 120 420 220 120 20 . 180 200 420 160 80 560 600 240 . 320 140 260 140 380 620 560 . 700 3180 Destroy 0b10 Robot/NC 735 | . 25 . 40 10 . 10 . 5 35 25 10 45 80 50 . . 10 . 15 60 20 15 5 . 5 270 Destroy Leader 1796 | . 84 10 118 50 30 . . 30 54 32 . . 152 132 20 . . 20 70 36 76 140 72 . 90 580 Allied During Kill 664 | . . . . . . . . 41 . 221 163 99 140 . . . . . . . . . . . . . Successful Hack 133 | . 17 . 22 4 . . . . 20 13 . . 5 . . . . . . . . . 28 24 . . Select Force Hacks 60 | . 60 . . . . . . . . . . . . . . . . . . . . . . . . . Disable Machine 1080 | . . . . 15 . . . . 195 15 . 60 375 120 . . . . 60 30 45 15 90 . . 60 Destroy Structure 1848 | . . . 9 5 . . . . 16 18 2 19 186 82 . . . . 76 36 158 21 63 . 138 1019 Partial Spotted 30 | . . . . . . . . . . . . . 15 15 . . . . . . . . . . . . Lose Combat Pursuer 525 | . 90 . 90 45 . . . 15 . 15 . . 15 45 15 . . . 30 30 . 15 45 . 75 . Influence Decreases 11798 | . 475 251 483 565 150 30 . 263 486 473 651 315 409 1075 960 403 84 406 282 533 441 579 785 257 142 1300 Entered New Map 2918 | . . 59 . 118 . . . . 4 22 145 8 . 571 404 78 . 246 . 109 13 117 225 237 72 490 Time Decay 7709 | . 475 162 453 417 150 30 . 223 232 410 326 267 289 464 556 325 84 130 232 404 378 452 550 20 . 680 Lost Part 701 | . . 30 30 30 . . . . 100 21 20 . 60 40 . . . 30 50 20 50 10 10 . 70 130 Lost Ally 320 | . . . . . . . . 40 . 20 160 40 60 . . . . . . . . . . . . . Purge Threat 150 | . . . . . . . . . 150 . . . . . . . . . . . . . . . . . Squads Dispatched 87 | . 4 . 4 3 . . . . 3 . . . 7 8 . . . . 4 6 7 . 6 . . 35 Investigation 8 | . 2 . . . . . . . . . . . . . . . . . . 3 1 . 1 . . 1 Extermination 24 | . . . . 2 . . . . 2 . . . 1 2 . . . . 3 . 4 . 4 . . 6 Reinforcement 19 | . 2 . 4 1 . . . . 1 . . . 2 1 . . . . 1 3 2 . 1 . . 1 Assault 29 | . . . . . . . . . . . . . 1 1 . . . . . . . . . . . 27 Garrison 7 | . . . . . . . . . . . . . 3 4 . . . . . . . . . . . . Intercept . | . . . . . . . . . . . . . . . . . . . . . . . . . . . Searches Triggered . | . . . . . . . . . . . . . . . . . . . . . . . . . . . Construction Impeded 4 | . . . 1 . . . . . . . . . . 1 . . . . . . 1 . . . . 1 Haulers Reinforced 2 | . . . . . . . . . . . . . . . . . . . . 1 1 . . . . . Active Scanning Responses . | . . . . . . . . . . . . . . . . . . . . . . . . . . . Cargo Convoy Interrupts 1 | . . . . . . . . . . . . . . 1 . . . . . . . . . . . . Stealth | -11 -10 -10 -8 -7 -7 -7 -7 -6 -6 -6 -6 -6 -6 -5 -5 -5 -5 -4 -4 -3 -3 -2 -2 -1 -1 -1 --------- Run | Yrd Mat Sub Mat Fac Low Low Zio Pro Fac Ext Cet Arc Hub Fac Upp Upp War Pro Fac Res Qua Res Tes Acc Gar Acc Distress Signals 30 | . 3 . 1 . . . . . 1 2 2 . 1 3 . . . . . 6 . 5 2 . . 4 Communications Jammed 17 | . . . . . . . . . . . . . 17 . . . . . . . . . . . . . Distress Signals 17 | . . . . . . . . . . . . . 17 . . . . . . . . . . . . . Times Spotted 670 | . 33 10 32 15 9 1 . 9 14 25 10 22 35 42 9 . 62 8 15 19 26 35 38 . 39 162 Peak Tracking Total 14 | . 4 4 3 4 3 . . 4 5 5 5 2 9 7 4 . 12 5 5 5 6 7 7 . 8 14 Tactical Retreats 23 | . 4 . 6 1 . . . 1 . 1 . . 1 3 1 . . . 1 1 . 1 1 . 1 . Traps | -11 -10 -10 -8 -7 -7 -7 -7 -6 -6 -6 -6 -6 -6 -5 -5 -5 -5 -4 -4 -3 -3 -2 -2 -1 -1 -1 ------- Run | Yrd Mat Sub Mat Fac Low Low Zio Pro Fac Ext Cet Arc Hub Fac Upp Upp War Pro Fac Res Qua Res Tes Acc Gar Acc Traps Triggered 9 | . . . . . . . . . . 2 . . . 1 . . . . 2 . 1 . 2 . . 1 Indirectly . | . . . . . . . . . . . . . . . . . . . . . . . . . . . Trap Hack Attempts . | . . . . . . . . . . . . . . . . . . . . . . . . . . . Triggered . | . . . . . . . . . . . . . . . . . . . . . . . . . . . Disarmed . | . . . . . . . . . . . . . . . . . . . . . . . . . . . Reprogrammed . | . . . . . . . . . . . . . . . . . . . . . . . . . . . Reused . | . . . . . . . . . . . . . . . . . . . . . . . . . . . Traps Extracted . | . . . . . . . . . . . . . . . . . . . . . . . . . . . Installed . | . . . . . . . . . . . . . . . . . . . . . . . . . . . Triggered . | . . . . . . . . . . . . . . . . . . . . . . . . . . . Machines | -11 -10 -10 -8 -7 -7 -7 -7 -6 -6 -6 -6 -6 -6 -5 -5 -5 -5 -4 -4 -3 -3 -2 -2 -1 -1 -1 ---------- Run | Yrd Mat Sub Mat Fac Low Low Zio Pro Fac Ext Cet Arc Hub Fac Upp Upp War Pro Fac Res Qua Res Tes Acc Gar Acc Machines Disabled 80 | . 1 1 . 1 . . . 1 13 1 . 4 25 8 2 . 1 . 4 2 3 1 6 . . 6 Max in Single Turn 10 | . 1 1 . 1 . . . 1 8 . . 1 10 2 1 . 1 . 3 1 1 1 1 . . 1 Garrison Access 2 | . . . . . . . . . . . . . . . . . . . . . 1 1 . . . . Garrison Relay 1 | . . . . . . . . . . . . . . . . . . . . . . . . . 1 . Network Hub 1 | . . . . . . . . . . . . . 1 . . . . . . . . . . . . . Machines Repaired . | . . . . . . . . . . . . . . . . . . . . . . . . . . . Machines Dismantled 3 | . . . . . . . . . . . . . . . . . 1 . . 2 . . . . . . Machines Sabotaged . | . . . . . . . . . . . . . . . . . . . . . . . . . . . Overloaded Fab Kills . | . . . . . . . . . . . . . . . . . . . . . . . . . . . Hacking | -11 -10 -10 -8 -7 -7 -7 -7 -6 -6 -6 -6 -6 -6 -5 -5 -5 -5 -4 -4 -3 -3 -2 -2 -1 -1 -1 --------- Run | Yrd Mat Sub Mat Fac Low Low Zio Pro Fac Ext Cet Arc Hub Fac Upp Upp War Pro Fac Res Qua Res Tes Acc Gar Acc Machines Accessed 64 | . 6 1 8 6 . 1 . . 6 6 1 . 6 5 2 1 1 1 2 1 4 . 4 1 1 . Terminals 48 | . 4 . 7 5 . . . . 6 6 1 . 5 4 1 . . 1 1 1 3 . 2 . 1 . Fabricators . | . . . . . . . . . . . . . . . . . . . . . . . . . . . Repair Stations 1 | . . . . . . . . . . . . . . . . . . . 1 . . . . . . . Recycling Units 2 | . 2 . . . . . . . . . . . . . . . . . . . . . . . . . Scanalyzers 2 | . . . 1 . . . . . . . . . . . . . . . . . . . 1 . . . Garrison Access 6 | . . . . 1 . . . . . . . . 1 1 . . . . . . 1 . 1 1 . . Total Hacks 123 | . 12 1 17 10 . 1 . . 8 11 2 . 9 7 9 1 1 1 6 2 7 . 13 2 3 . Successful 52 | . 8 1 6 3 . 1 . . 4 6 . . 3 . 9 1 1 1 1 . 3 . 3 1 . . Failed 71 | . 4 . 11 7 . . . . 4 5 2 . 6 7 . . . . 5 2 4 . 10 1 3 . Catastrophic 18 | . 1 . 2 3 . . . . . 1 1 . 2 2 . . . . 1 . . . 4 . 1 . Database Lockouts . | . . . . . . . . . . . . . . . . . . . . . . . . . . . Manual 61 | . 12 . 14 7 . . . 1 6 1 1 . 2 6 . . . . . 2 4 . 5 . . . Terminals 97 | . 10 . 15 9 . . . . 8 11 2 . 7 6 8 . . 1 2 2 5 . 8 . 3 . Fabricators . | . . . . . . . . . . . . . . . . . . . . . . . . . . . Repair Stations 4 | . . . . . . . . . . . . . . . . . . . 4 . . . . . . . Recycling Units 2 | . 2 . . . . . . . . . . . . . . . . . . . . . . . . . Scanalyzers 6 | . . . 2 . . . . . . . . . . . . . . . . . . . 4 . . . Garrison Access 9 | . . . . 1 . . . . . . . . 2 1 . . . . . . 2 . 1 2 . . Terminal Hacks 37 | . 5 1 3 2 . 1 . . 3 6 . . 2 . 9 1 1 1 . . 1 . 1 . . . Record 9 | . . . . . . . . . . . . . . . 8 . . 1 . . . . . . . . Part Schematic 1 | . . . . 1 . . . . . . . . . . . . . . . . . . . . . . Robot Analysis 5 | . 2 . 2 . . . . . . 1 . . . . . . . . . . . . . . . . Open Door 8 | . . . . . . 1 . . 1 2 . . . . 1 1 1 . . . . . 1 . . . Level Access Points 1 | . . . . . . . . . . . . . 1 . . . . . . . . . . . . . Branch Access Points 3 | . . . 1 1 . . . . 1 . . . . . . . . . . . . . . . . . Recycling Unit Index 1 | . 1 . . . . . . . . . . . . . . . . . . . . . . . . . Alert Level 1 | . . . . . . . . . . 1 . . . . . . . . . . . . . . . . Unreport Threat 1 | . . . . . . . . . 1 . . . . . . . . . . . . . . . . . Zone Layout 6 | . 2 . . . . . . . . 2 . . 1 . . . . . . . 1 . . . . . Proto ID Catalog 1 | . . 1 . . . . . . . . . . . . . . . . . . . . . . . . Fabricator Hacks . | . . . . . . . . . . . . . . . . . . . . . . . . . . . Repair Station Hacks 1 | . . . . . . . . . . . . . . . . . . . 1 . . . . . . . Scan Component 1 | . . . . . . . . . . . . . . . . . . . 1 . . . . . . . Recycling Unit Hacks . | . . . . . . . . . . . . . . . . . . . . . . . . . . . Scanalyzer 2 | . . . 1 . . . . . . . . . . . . . . . . . . . 1 . . . Retrieve Study 2 | . . . 1 . . . . . . . . . . . . . . . . . . . 1 . . . Garrison Access Hacks 2 | . . . . . . . . . . . . . . . . . . . . . 1 . . 1 . . Unlock Access 1 | . . . . . . . . . . . . . . . . . . . . . . . . 1 . . Seal Access 1 | . . . . . . . . . . . . . . . . . . . . . 1 . . . . . Unauthorized Hacks 10 | . 3 . 2 1 . . . . 1 . . . 1 . . . . . . . 1 . 1 . . . Terminals 8 | . 1 . 2 1 . . . . 1 . . . 1 . . . . . . . 1 . 1 . . . Botnet 8 | . 1 . 2 1 . . . . 1 . . . 1 . . . . . . . 1 . 1 . . . Fabricators . | . . . . . . . . . . . . . . . . . . . . . . . . . . . Repair Stations . | . . . . . . . . . . . . . . . . . . . . . . . . . . . Recycling Units 2 | . 2 . . . . . . . . . . . . . . . . . . . . . . . . . Tunnel 2 | . 2 . . . . . . . . . . . . . . . . . . . . . . . . . Scanalyzers . | . . . . . . . . . . . . . . . . . . . . . . . . . . . Garrison Access . | . . . . . . . . . . . . . . . . . . . . . . . . . . . Data Cores Recovered 2 | . . . . 1 . . . . . . . . 1 . . . . . . . . . . . . . Used 1 | . . . . 1 . . . . . . . . . . . . . . . . . . . . . . Hacking Detections 39 | . 4 . 8 4 . . . . 2 5 1 . 3 1 1 . . . 2 . 3 . 4 . 1 . Full Trace Events . | . . . . . . . . . . . . . . . . . . . . . . . . . . . Feedback Events . | . . . . . . . . . . . . . . . . . . . . . . . . . . . Feedback Blocked . | . . . . . . . . . . . . . . . . . . . . . . . . . . . Robot Schematics Acquired 1 | . . . . . . . . . . . . . . . . . . . . . . . 1 . . . Robots Built . | . . . . . . . . . . . . . . . . . . . . . . . . . . . Authchips . | . . . . . . . . . . . . . . . . . . . . . . . . . . . Time . | . . . . . . . . . . . . . . . . . . . . . . . . . . . Total Robot Build Rating . | . . . . . . . . . . . . . . . . . . . . . . . . . . . Part Schematics Acquired 2 | . . . . 1 . . . . . . . . . . . . . . . . . . 1 . . . Parts Built . | . . . . . . . . . . . . . . . . . . . . . . . . . . . Authchips . | . . . . . . . . . . . . . . . . . . . . . . . . . . . Time . | . . . . . . . . . . . . . . . . . . . . . . . . . . . Total Part Build Rating . | . . . . . . . . . . . . . . . . . . . . . . . . . . . Part Studies Acquired 2 | . . . 1 . . . . . . . . . . . . . . . . . . . 1 . . . Parts Repaired . | . . . . . . . . . . . . . . . . . . . . . . . . . . . Time . | . . . . . . . . . . . . . . . . . . . . . . . . . . . Parts Recycled . | . . . . . . . . . . . . . . . . . . . . . . . . . . . Recycled Matter . | . . . . . . . . . . . . . . . . . . . . . . . . . . . Retrieved Matter . | . . . . . . . . . . . . . . . . . . . . . . . . . . . Retrieved Components . | . . . . . . . . . . . . . . . . . . . . . . . . . . . Parts Scanalyzed . | . . . . . . . . . . . . . . . . . . . . . . . . . . . Part Schematics Acquired . | . . . . . . . . . . . . . . . . . . . . . . . . . . . Parts Damaged . | . . . . . . . . . . . . . . . . . . . . . . . . . . . Bothacking | -11 -10 -10 -8 -7 -7 -7 -7 -6 -6 -6 -6 -6 -6 -5 -5 -5 -5 -4 -4 -3 -3 -2 -2 -1 -1 -1 ------------ Run | Yrd Mat Sub Mat Fac Low Low Zio Pro Fac Ext Cet Arc Hub Fac Upp Upp War Pro Fac Res Qua Res Tes Acc Gar Acc Used RIF Installer 1 | . . . . . . . . . . . . . . . . . . . . . . . . . 1 . Robots Hacked . | . . . . . . . . . . . . . . . . . . . . . . . . . . . Non-combat . | . . . . . . . . . . . . . . . . . . . . . . . . . . . Combat . | . . . . . . . . . . . . . . . . . . . . . . . . . . . Robot Hacks Applied . | . . . . . . . . . . . . . . . . . . . . . . . . . . . Relay Couplers Released 7 | . . . . . . . . . . . . . . . . . . . . . . 2 . . 5 . Machine Destruction 7 | . . . . . . . . . . . . . . . . . . . . . . 2 . . 5 . Fabnet Peak Effective % . | . . . . . . . . . . . . . . . . . . . . . . . . . . . Robots Rewired 15 | . . . . . . . . . . 15 . . . . . . . . . . . . . . . . Allies Hacked . | . . . . . . . . . . . . . . . . . . . . . . . . . . . Hacks Repelled . | . . . . . . . . . . . . . . . . . . . . . . . . . . . Allies | -11 -10 -10 -8 -7 -7 -7 -7 -6 -6 -6 -6 -6 -6 -5 -5 -5 -5 -4 -4 -3 -3 -2 -2 -1 -1 -1 -------- Run | Yrd Mat Sub Mat Fac Low Low Zio Pro Fac Ext Cet Arc Hub Fac Upp Upp War Pro Fac Res Qua Res Tes Acc Gar Acc Total Allies 39 | . . . . . . . 3 . . 19 5 . . 12 . . . . . . . . . . . . Largest Group 16 | . . . . . . . 3 3 1 16 16 7 4 6 . . . . . . . . . . . . Highest-Rated Group 845 | . . . . . . . 93 93 31 557 845 591 311 157 . . . . . . . . . . . . Highest-Rated Ally 159 | . . . . . . . 31 31 31 159 159 159 96 31 . . . . . . . . . . . . Total Orders 8 | . . . . . . . . . . . 6 2 . . . . . . . . . . . . . . STAY 7 | . . . . . . . . . . . 6 1 . . . . . . . . . . . . . . FOLLOW 1 | . . . . . . . . . . . . 1 . . . . . . . . . . . . . . Ally Attacks 229 | . . . . . . . . 37 1 66 61 22 42 . . . . . . . . . . . . . Total Damage 5806 | . . . . . . . . 425 . 1585 1706 828 1262 . . . . . . . . . . . . . Kills 35 | . . . . . . . . 6 . 10 8 3 8 . . . . . . . . . . . . . Allies Corrupted 1 | . . . . . . . . . . . . . 1 . . . . . . . . . . . . . Allies Melted 5 | . . . . . . . . . . . . . . . . . . . . . . 5 . . . . Intel | -11 -10 -10 -8 -7 -7 -7 -7 -6 -6 -6 -6 -6 -6 -5 -5 -5 -5 -4 -4 -3 -3 -2 -2 -1 -1 -1 ------- Run | Yrd Mat Sub Mat Fac Low Low Zio Pro Fac Ext Cet Arc Hub Fac Upp Upp War Pro Fac Res Qua Res Tes Acc Gar Acc Active Infowar (turns) 29791 | . . . . 1436 1792 2317 2530 1383 720 160 . 26 569 828 1396 1039 559 1741 1601 964 1749 2030 1594 43 980 4334 Optics 11206 | . . . . . . . . . . . . . . . . . . . . 476 1749 2030 1594 43 980 4334 Sensors 24556 | . . . . 1186 1790 2317 2530 1383 720 160 . 26 542 813 1396 1039 559 1741 1411 886 1581 1642 1177 36 42 1579 Terrain 2889 | . . . . 1410 1009 . . . 470 . . . . . . . . . . . . . . . . . Decoding 1404 | . . . . . . . . . . . . . . . . . . . 1404 . . . . . . . Jamming 333 | . . . . . . . . . 35 . . . 27 15 . . . . 4 . 252 . . . . . Robot Analysis Total 5 | . 2 . 2 . . . . . . 1 . . . . . . . . . . . . . . . . Derelict Logs Recovered 12 | . . 1 . . 1 2 1 1 . . . . . . 2 1 . 3 . . . . . . . . Drone Launches . | . . . . . . . . . . . . . . . . . . . . . . . . . . . Drone Recoveries . | . . . . . . . . . . . . . . . . . . . . . . . . . . . Decoded 0b10 Intel 29 | . . . . . . . . . . . . . . . . . . . 29 . . . . . . . Traps 21 | . . . . . . . . . . . . . . . . . . . 21 . . . . . . . Emergency Access 7 | . . . . . . . . . . . . . . . . . . . 7 . . . . . . . Exits 1 | . . . . . . . . . . . . . . . . . . . 1 . . . . . . . Exploration | -11 -10 -10 -8 -7 -7 -7 -7 -6 -6 -6 -6 -6 -6 -5 -5 -5 -5 -4 -4 -3 -3 -2 -2 -1 -1 -1 ------------- Run | Yrd Mat Sub Mat Fac Low Low Zio Pro Fac Ext Cet Arc Hub Fac Upp Upp War Pro Fac Res Qua Res Tes Acc Gar Acc Turns Passed 39801 | 75 1822 1023 1258 1507 2386 2317 2530 1411 782 2232 730 698 857 1169 1634 1039 1129 1875 1633 964 1749 2030 1594 43 980 4334 Spaces Moved 16917 | 42 862 694 702 670 936 945 1048 574 317 762 323 284 335 505 927 638 572 959 484 353 759 948 656 23 429 1170 Core 9 | 9 . . . . . . . . . . . . . . . . . . . . . . . . . . Treads 14404 | 33 862 17 70 358 936 945 1048 574 178 689 323 284 335 505 927 638 572 959 484 124 317 948 656 23 429 1170 Legs . | . . . . . . . . . . . . . . . . . . . . . . . . . . . Wheels 2504 | . . 677 632 312 . . . . 139 73 . . . . . . . . . 229 442 . . . . . Hover . | . . . . . . . . . . . . . . . . . . . . . . . . . . . Flight . | . . . . . . . . . . . . . . . . . . . . . . . . . . . Fastest Speed 50 | 50 160 115 86 145 156 240 240 240 125 145 160 160 160 160 160 160 160 160 241 175 157 164 163 163 163 160 Average Speed 186 | 154 160 119 120 196 234 240 240 240 199 231 190 160 160 160 160 160 160 184 277 231 180 167 163 163 163 163 Slowest Speed 560 | 200 160 160 157 243 240 240 240 240 250 240 240 160 160 160 160 160 160 250 560 332 252 252 166 163 163 250 Overloaded Moves . | . . . . . . . . . . . . . . . . . . . . . . . . . . . Propulsion Burnouts . | . . . . . . . . . . . . . . . . . . . . . . . . . . . Robots Hopped . | . . . . . . . . . . . . . . . . . . . . . . . . . . . Potential Cave-ins 7 | . . . . . . . . . . . . . . . . . . . 4 . 3 . . . . . Cave-ins Triggered 1 | . . . . . . . . . . . . . . . . . . . 1 . . . . . . . Exploration Rate (%) 54 | 4 87 30 56 20 93 92 84 87 12 86 75 96 40 16 92 72 71 97 11 20 86 31 47 2 50 27 Regions Visited 26 Branch Regions 15 Pre-discovered Areas 9 | . 2 1 . . 1 . 2 . . . . . . . 2 1 . . . . . . . . . . Known Exits Taken 21 | . . . . 1 1 1 1 1 1 1 1 1 1 1 1 1 1 1 1 1 1 1 1 1 . . Unknown Exits Taken 4 | 1 1 1 1 . . . . . . . . . . . . . . . . . . . . . . . Scrap Searched 24 | . . 6 . . 3 5 3 . . . . . . . 2 3 . 2 . . . . . . . . Spaces Dug 91 | . . . . 1 1 . . 1 3 . . . 10 1 6 2 . . 12 2 25 4 10 . 1 12 Terrain Destroyed 1292 | . . 20 5 4 61 . . 15 16 22 1 22 293 53 12 3 23 7 49 17 82 8 20 . 54 505 Melee . | . . . . . . . . . . . . . . . . . . . . . . . . . . . Projectile 426 | . . 2 5 4 3 . . 2 5 4 1 22 122 46 8 3 22 7 27 17 57 6 20 . 5 38 AOE 863 | . . 18 . . 58 . . 13 11 18 . . 170 7 3 . . . 22 . 25 2 . . 49 467 Terrain Rammed . | . . . . . . . . . . . . . . . . . . . . . . . . . . . Walls Destroyed . | . . . . . . . . . . . . . . . . . . . . . . . . . . . Machines Disabled . | . . . . . . . . . . . . . . . . . . . . . . . . . . . Actions | -11 -10 -10 -8 -7 -7 -7 -7 -6 -6 -6 -6 -6 -6 -5 -5 -5 -5 -4 -4 -3 -3 -2 -2 -1 -1 -1 --------- Run | Yrd Mat Sub Mat Fac Low Low Zio Pro Fac Ext Cet Arc Hub Fac Upp Upp War Pro Fac Res Qua Res Tes Acc Gar Acc Total 22694 | 49 1163 807 972 801 1065 982 1063 595 404 1148 411 473 490 729 1028 655 696 1022 688 431 1026 1243 1023 28 631 3071 Wait 3063 | . 206 46 130 35 14 16 4 . 13 90 29 141 47 116 50 . 56 21 67 13 104 96 180 . 117 1472 Move 16889 | 41 861 693 701 669 935 944 1047 573 316 761 322 283 334 504 926 637 571 958 482 352 758 947 655 23 427 1169 Hop . | . . . . . . . . . . . . . . . . . . . . . . . . . . . Pick Up 250 | 2 13 6 23 13 33 6 . 1 6 15 11 6 2 10 4 5 4 7 10 4 13 23 13 1 6 13 Fast Attach 150 | 6 2 2 11 5 6 . 5 . 5 13 8 3 6 5 . 1 7 1 6 8 7 16 15 . 1 11 Attach 136 | . . 3 6 5 13 . . . 7 7 1 7 7 4 2 1 1 5 8 2 17 10 5 1 12 12 Detach 44 | . . 1 3 . . . . . . 1 2 1 2 . . . 2 . 1 1 15 6 2 . 5 2 Swap 377 | . 5 6 7 28 19 4 2 10 19 17 1 4 29 30 12 2 2 8 22 9 20 29 42 2 2 46 Drop 272 | . 4 5 21 17 11 5 5 3 3 26 22 4 3 7 3 6 11 2 12 3 17 41 30 1 2 8 Fire 1275 | . 72 45 70 26 33 7 . 8 30 45 15 24 57 49 31 3 34 20 63 20 73 75 81 . 59 335 Melee . | . . . . . . . . . . . . . . . . . . . . . . . . . . . Ram . | . . . . . . . . . . . . . . . . . . . . . . . . . . . Kick . | . . . . . . . . . . . . . . . . . . . . . . . . . . . Crush 18 | . . . . 1 1 . . . 2 1 . . . . . . . . 12 . 1 . . . . . Escape Stasis 12 | . . . . . . . . . . 4 . . . . . . . . 5 . . . . . . 3 Rewire 168 | . . . . . . . . . . 168 . . . . . . . . . . . . . . . . Trap . | . . . . . . . . . . . . . . . . . . . . . . . . . . . Miscellaneous 40 | . . . . 2 . . . . 3 . . . 3 4 . . 8 . . 19 1 . . . . . Route ------- -11/Scrapyard -10/Materials (discovered 5 exits: [*Mat x2] / [*Min x2] / *Sub) -10/Subcaves -8/Materials -7/Factory (discovered 4 exits: *Fac x2 / *Low x2) -7/Lower Caves -7/Lower Caves (discovered 2 exits: *Fac / *Zio) -7/Zion -6/Proximity Caves -6/Factory (discovered 5 exits: Fac / Low x2 / *Ext x2) -6/Extension (discovered 2 exits: *Fac / *Cet) -6/Cetus (discovered 2 exits: *Fac / *Arc) -6/Archives (discovered 3 exits: *Fac / *Hub x2) -6/Hub_04(d) (discovered 4 exits: *Fac x4) -5/Factory -5/Upper Caves -5/Upper Caves (discovered 2 exits: *Fac / *War) -5/Warlord -4/Proximity Caves -4/Factory (discovered 4 exits: *Res x3 / Arm) -3/Research -3/Quarantine -2/Research (discovered 2 exits: *Tes x2) -2/Testing -1/Access -1/Garrison (discovered 2 exits: *Acc x2) -1/Access To Epsilon Eridani History --------- Turn | Location | Event 12 | -11/Scrapyard | Discovered new exit (range 16) 76 | -11/Scrapyard | Entered Materials 309 | -10/Materials | Build established: Mutant 723 | -10/Materials | Discovered new exit (range 6) 1035 | -10/Materials | Core integrity fell below 50% 1089 | -10/Materials | Discovered new exit (range 15) 1646 | -10/Materials | Discovered new exit (range 14) 1705 | -10/Materials | Discovered new exit (range 16) 1878 | -10/Materials | Discovered new exit (range 7) 1898 | -10/Materials | Entered Subcaves 1927 | -10/Subcaves | Core integrity fell below 20% 2021 | -10/Subcaves | Learned location of Zion (-7) 2145 | -10/Subcaves | Visited 4L-MR0's lab 2164 | -10/Subcaves | Found Gun Armor 2225 | -10/Subcaves | A swath of the cavern ceiling suddenly collapsed 2281 | -10/Subcaves | Discovered new exit (range 10) 2597 | -10/Subcaves | Ambushed by angry Subdweller bent on revenge 2921 | -10/Subcaves | Entered Materials 2921 | -8/Materials | Evolved 4 slots: Propulsion x2, Utility x1, Weapon x1 3308 | -8/Materials | Build established: Scavenger-Gunner 4097 | -8/Materials | Discovered new exit (range 5) 4179 | -8/Materials | Entered Factory 4179 | -7/Factory | Evolved 2 slots: Power x1, Utility x1 4558 | -7/Factory | Discovered new exit (range 15) 4578 | -7/Factory | Identified exit to Factory 4579 | -7/Factory | Build established: Skirmisher 4986 | -7/Factory | Identified exit to Lower Caves 5118 | -7/Factory | Discovered exit to Factory (range 5) 5686 | -7/Factory | Entered Lower Caves 6028 | -7/Lower Caves | Attracted the attention of an 0b10 checkpoint 6748 | -7/Lower Caves | Spotted B-75 Beast 6835 | -7/Lower Caves | Destroyed B-75 Beast 6857 | -7/Lower Caves | Lost 8 parts (1p2n2u3w) 6882 | -7/Lower Caves | Encountered a Warlord checkpoint 6942 | -7/Lower Caves | Discovered new exit (range 14) 7437 | -7/Lower Caves | Build established: Mutant 7966 | -7/Lower Caves | Build established: Scavenger-Skirmisher 8070 | -7/Lower Caves | Identified exit to Lower Caves 8072 | -7/Lower Caves | Entered another Lower Caves area 8122 | -7/Lower Caves | Discovered exit to Factory (range 15) 9657 | -7/Lower Caves | Learned Factory trap positions 10134 | -7/Lower Caves | Learned Factory emergency access door positions 10379 | -7/Lower Caves | Discovered new exit (range 5) 10386 | -7/Lower Caves | Identified exit to Zion 10389 | -7/Lower Caves | Entered Zion 10510 | -7/Zion | System corruption cleaned by Quarantine Array 10557 | -7/Zion | Gained Derelict followers 10696 | -7/Zion | Build established: Scavenger-Mutant 11005 | -7/Zion | Build established: Scavenger-Skirmisher 11065 | -7/Zion | Given A8's code to call for help 11107 | -7/Zion | Learned 12 Factory zone layouts 12286 | -7/Zion | Met Imprinter 12886 | -7/Zion | Discovered new exit (range 12) 12910 | -7/Zion | Identified exit to Proximity Caves 12919 | -7/Zion | Entered Proximity Caves 12919 | -6/Proximity Caves | Accompanied by 3 allies 13006 | -6/Proximity Caves | Spotted B-75 Beast 13032 | -6/Proximity Caves | Allies destroyed B-75 Beast 13892 | -6/Proximity Caves | Acquired the password to a Derelict Tinkerer's latest research 13908 | -6/Proximity Caves | Found Prototype Special Weapon 14101 | -6/Proximity Caves | Discovered exit to Factory (range 16) 14122 | -6/Proximity Caves | Attracted the attention of an 0b10 checkpoint 14330 | -6/Proximity Caves | Entered Factory 14330 | -6/Factory | Accompanied by 1 ally 14330 | -6/Factory | Evolved 2 slots: Utility x2 14331 | -6/Factory | Identified exit to Factory 14332 | -6/Factory | Loaded intel: 129 trap records 14581 | -6/Factory | Identified exit to Lower Caves 14581 | -6/Factory | Identified exit to Extension 14871 | -6/Factory | Lost 8 parts (4n4u) 15112 | -6/Factory | Entered Extension 15803 | -6/Extension | Identified Molecular Deconstructor 15866 | -6/Extension | Rescued a captive Derelict 15868 | -6/Extension | Rescued a captive Derelict 15975 | -6/Extension | Build established: Scavenger-Tank 16408 | -6/Extension | Build established: Commander-Tank 16559 | -6/Extension | Spotted B-75 Beast 16566 | -6/Extension | Destroyed B-75 Beast 16580 | -6/Extension | Spotted B-75 Beast 16586 | -6/Extension | Allies destroyed B-75 Beast 16800 | -6/Extension | Rescued A7 16850 | -6/Extension | Rescued a captive Derelict 17097 | -6/Extension | Build established: Scavenger-Tank 17268 | -6/Extension | Discovered exit to Factory (range 10) 17271 | -6/Extension | Discovered new exit (range 6) 17283 | -6/Extension | Identified exit to Cetus 17344 | -6/Extension | Entered Cetus 17344 | -6/Cetus | Accompanied by 16 allies (A7) 17349 | -6/Cetus | Acquired a Cetus Manufacturing Module code from A7 17374 | -6/Cetus | Spotted Cetus Guard 17374 | -6/Cetus | Spotted Cetus Guard 17378 | -6/Cetus | Spotted Cetus Guard 17385 | -6/Cetus | Spotted Cetus Guard 17389 | -6/Cetus | Allies destroyed Cetus Guard 17397 | -6/Cetus | Allies destroyed Cetus Guard 17402 | -6/Cetus | Destroyed Cetus Guard 17409 | -6/Cetus | Allies destroyed Cetus Guard 17433 | -6/Cetus | Lost 7 allies 17512 | -6/Cetus | Started Cetus Manufacturing Module 17537 | -6/Cetus | Manufactured an Enhanced Grunt 17549 | -6/Cetus | Escorted A7 to Cetus Mainframe 17562 | -6/Cetus | Manufactured an Enhanced Grunt 17587 | -6/Cetus | Manufactured an Enhanced Grunt 17597 | -6/Cetus | Discovered new exit (range 16) 17612 | -6/Cetus | Manufactured an Enhanced Grunt 17637 | -6/Cetus | Manufactured an Enhanced Grunt 17641 | -6/Cetus | Spotted Cetus Guard 17641 | -6/Cetus | Spotted Cetus Guard 17644 | -6/Cetus | Spotted Cetus Guard 17649 | -6/Cetus | Spotted Cetus Guard 17651 | -6/Cetus | Allies destroyed Cetus Guard 17655 | -6/Cetus | Allies destroyed Cetus Guard 17662 | -6/Cetus | Destroyed Cetus Guard 17664 | -6/Cetus | Allies destroyed Cetus Guard 17679 | -6/Cetus | Discovered exit to Factory (range 16) 17691 | -6/Cetus | Met Revision 17 17706 | -6/Cetus | System corruption reached 10% 18047 | -6/Cetus | Identified exit to Archives 18074 | -6/Cetus | Entered Archives 18074 | -6/Archives | Accompanied by 7 allies (A7) 18082 | -6/Archives | Received a hacking code to weaken MAIN.C 18143 | -6/Archives | Found Prototype Device 18143 | -6/Archives | Identified Exp. Thermal Shield 18159 | -6/Archives | Discovered new exit (range 15) 18167 | -6/Archives | Attached Gun Armor, gained temporary slots: Weapon x2 18299 | -6/Archives | Discovered exit to Factory (range 14) 18421 | -6/Archives | Discovered new exit (range 15) 18764 | -6/Archives | Identified exit to Hub_04(d) 18772 | -6/Archives | Entered Hub_04(d) 18772 | -6/Hub_04(d) | Accompanied by 4 allies 18959 | -6/Hub_04(d) | Garrison activated, responded to threat 19229 | -6/Hub_04(d) | Lost 4 allies 19366 | -6/Hub_04(d) | Network Hub disabled 19380 | -6/Hub_04(d) | Spotted Lightning 19380 | -6/Hub_04(d) | Spotted Lightning 19381 | -6/Hub_04(d) | Spotted Lightning 19389 | -6/Hub_04(d) | Destroyed Lightning 19399 | -6/Hub_04(d) | Destroyed Lightning 19413 | -6/Hub_04(d) | Destroyed Lightning 19446 | -6/Hub_04(d) | Found Prototype Device 19446 | -6/Hub_04(d) | Identified Exp. Phase Shifter 19472 | -6/Hub_04(d) | First assault squad dispatched 19475 | -6/Hub_04(d) | Spotted Lightning 19480 | -6/Hub_04(d) | Spotted Lightning 19481 | -6/Hub_04(d) | Spotted Lightning 19486 | -6/Hub_04(d) | System corruption reached 30% 19525 | -6/Hub_04(d) | Core integrity fell below 50% 19548 | -6/Hub_04(d) | Destroyed Lightning 19555 | -6/Hub_04(d) | Destroyed Lightning 19555 | -6/Hub_04(d) | Destroyed Lightning 19569 | -6/Hub_04(d) | Lost 5 parts (1p1n1u2w) 19570 | -6/Hub_04(d) | Found Prototype Processor 19570 | -6/Hub_04(d) | Identified Exp. Targeting Computer 19581 | -6/Hub_04(d) | Found Prototype Device 19581 | -6/Hub_04(d) | Identified Exp. EM Shield 19585 | -6/Hub_04(d) | Destroyed 8 combat bots 19585 | -6/Hub_04(d) | Found Prototype Energy Cannon 19595 | -6/Hub_04(d) | Found Exp. EM Shield 19629 | -6/Hub_04(d) | Entered Factory 19629 | -5/Factory | Evolved 2 slots: Propulsion x2 19630 | -5/Factory | Identified exit to Upper Caves 19775 | -5/Factory | Build established: Scavenger-Skirmisher 19865 | -5/Factory | Garrison activated, responded to threat 20229 | -5/Factory | First assault squad dispatched 20399 | -5/Factory | Destroyed 7 combat bots 20467 | -5/Factory | Garrison activated, responded to threat 20526 | -5/Factory | Lost 3 parts (1p2w) 20572 | -5/Factory | Cargo convoy interrupted 20798 | -5/Factory | Entered Upper Caves 20915 | -5/Upper Caves | Learned 12 Factory zone layouts 21029 | -5/Upper Caves | Attracted the attention of an 0b10 base 21087 | -5/Upper Caves | Learned Armory stockpile data 21087 | -5/Upper Caves | Learned Research trap positions 21087 | -5/Upper Caves | Identified exit to Upper Caves 21087 | -5/Upper Caves | Learned location of 2 exits from Upper Caves 21640 | -5/Upper Caves | Learned 4 Factory zone layouts 22432 | -5/Upper Caves | Entered another Upper Caves area 22433 | -5/Upper Caves | Identified exit to Warlord 22433 | -5/Upper Caves | Identified exit to Factory 23006 | -5/Upper Caves | Spotted B-75 Beast 23471 | -5/Upper Caves | Entered Warlord 23472 | -5/Warlord | Identified exit to Proximity Caves 23527 | -5/Warlord | System corruption cleaned by Quarantine Array 23951 | -5/Warlord | Warlord's base attacked by MAIN.C 24032 | -5/Warlord | Found Prototype Device 24032 | -5/Warlord | Identified Exp. Focal Shield 24050 | -5/Warlord | Found Prototype Reactor 24050 | -5/Warlord | Identified Vortex Chain Reactor 24136 | -5/Warlord | Met Warlord 24301 | -5/Warlord | Warlord forces counterattacked 24323 | -5/Warlord | Spotted B-86 Titan 24326 | -5/Warlord | Build established: Scavenger-Tank 24364 | -5/Warlord | Lost 5 allies 24499 | -5/Warlord | Spotted Executioner 24552 | -5/Warlord | Spotted Executioner 24552 | -5/Warlord | Spotted Executioner 24555 | -5/Warlord | P-80 Master assimilated allied C6-LQW(g) 24565 | -5/Warlord | Destroyed Executioner 24591 | -5/Warlord | Found Prototype Device 24591 | -5/Warlord | Identified Adv. Kinecellerator 24595 | -5/Warlord | Found Prototype Processor 24595 | -5/Warlord | Identified Exp. Core Analyzer 24600 | -5/Warlord | Entered Proximity Caves 24605 | -4/Proximity Caves | Lost 5 allies 24610 | -4/Proximity Caves | Attracted the attention of an 0b10 checkpoint 24655 | -4/Proximity Caves | Lost 5 parts (2n3w) 24718 | -4/Proximity Caves | Spotted B-86 Titan 24956 | -4/Proximity Caves | Build established: Scavenger-Gunner 26475 | -4/Proximity Caves | Entered Factory 26475 | -4/Factory | Evolved 2 slots: Utility x2 26476 | -4/Factory | Identified exit to Research 26476 | -4/Factory | Identified exit to Armory 26776 | -4/Factory | Build established: Scavenger-Tank 27497 | -4/Factory | Identified EMDS 27601 | -4/Factory | Found Unknown Device 27601 | -4/Factory | Identified Quantum Capacitor 27879 | -4/Factory | Crushed by falling debris 27932 | -4/Factory | Build established: Scavenger-Mutant 28108 | -4/Factory | Entered Research 28108 | -3/Research | Evolved 2 slots: Utility x2 28109 | -3/Research | Identified exit to Quarantine 28110 | -3/Research | Loaded intel: 98 trap records 28237 | -3/Research | Build established: Scavenger-Gunner 28308 | -3/Research | Revision forces began assault on 0b10 28342 | -3/Research | Met up with Revision 17++ 28596 | -3/Research | Found Prototype Processor 28596 | -3/Research | Identified Spectral Analyzer 28621 | -3/Research | Spotted B-86 Titan 28781 | -3/Research | Found Quantum Capacitor 28808 | -3/Research | Research terminal network offline 28852 | -3/Research | Found Prototype Device 28852 | -3/Research | Identified Exp. Shield Generator 29017 | -3/Research | Spotted Striker 29072 | -3/Research | Entered Quarantine 29087 | -3/Quarantine | Found Alien Artifact 29910 | -3/Quarantine | Discovered new exit (range 24) 30282 | -3/Quarantine | Build established: Scavenger-Mutant 30798 | -3/Quarantine | Identified exit to Research 30821 | -3/Quarantine | Entered Research 30821 | -2/Research | Warlord forces began assault on 0b10 30821 | -2/Research | Evolved 2 slots: Power x1, Weapon x1 30822 | -2/Research | Identified exit to Testing 30931 | -2/Research | Research machine network offline 30934 | -2/Research | Discovered exit to Testing (range 14) 30961 | -2/Research | Met up with Warlord 31099 | -2/Research | Found Prototype Launcher 31099 | -2/Research | Identified Point Singularity Launcher 31182 | -2/Research | Build established: Scavenger-Gunner 31221 | -2/Research | Borebot progress halted 31363 | -2/Research | Spotted 5M-PIX(H) 31378 | -2/Research | Borebot progress halted 31382 | -2/Research | Borebot progress halted 31534 | -2/Research | Spotted Striker 31539 | -2/Research | Spotted Striker 31546 | -2/Research | Destroyed Striker 31553 | -2/Research | Destroyed Striker 31565 | -2/Research | Spotted Executioner 31584 | -2/Research | Spotted Striker 31593 | -2/Research | Destroyed Striker 31598 | -2/Research | Spotted Striker 31599 | -2/Research | Destroyed Executioner 31611 | -2/Research | Destroyed Striker 31663 | -2/Research | Found Corrupted Exp. Core Analyzer 31699 | -2/Research | Spotted Executioner 31699 | -2/Research | Spotted Executioner 31712 | -2/Research | Destroyed Executioner 31722 | -2/Research | Lost 4 allies 31723 | -2/Research | Destroyed Executioner 31752 | -2/Research | Found Corrupted Adv. Kinecellerator 31999 | -2/Research | Spotted Striker 32011 | -2/Research | Destroyed Striker 32112 | -2/Research | Spotted Striker 32119 | -2/Research | Destroyed Striker 32324 | -2/Research | Given Cave Seal Controls access code 32506 | -2/Research | Warlord destroyed during the assault 32671 | -2/Research | Found Exp. Core Analyzer 32740 | -2/Research | Spotted Striker 32750 | -2/Research | Spotted Executioner 32751 | -2/Research | Spotted Executioner 32762 | -2/Research | Destroyed Executioner 32771 | -2/Research | Destroyed Executioner 32778 | -2/Research | Spotted Executioner 32788 | -2/Research | Destroyed Executioner 32838 | -2/Research | Destroyed 7 combat bots 32851 | -2/Research | Entered Testing 33021 | -2/Testing | Build established: Scavenger-Tank 33211 | -2/Testing | Spotted Striker 33212 | -2/Testing | Spotted Striker 33274 | -2/Testing | Found Corrupted Prototype Energy Cannon 33274 | -2/Testing | Identified Imp. Potential Cannon 33275 | -2/Testing | System corruption reached 10% 33303 | -2/Testing | Destroyed Striker 33327 | -2/Testing | System corruption reached 30% 33372 | -2/Testing | Found Corrupted Prototype Device 33450 | -2/Testing | Identified Exp. Shock Absorption System 33455 | -2/Testing | Found Prototype Protection 33853 | -2/Testing | Found Prototype Energy Gun 33853 | -2/Testing | Identified Tachyon Dispersion Ray 33928 | -2/Testing | Found Prototype Energy Cannon 33928 | -2/Testing | Identified Cld. Nova Cannon 33948 | -2/Testing | Spotted PX-YNPX0VYNO2 34125 | -2/Testing | Destroyed 7 combat bots 34328 | -2/Testing | Found Prototype Energy Cannon 34328 | -2/Testing | Identified Null Cannon 34380 | -2/Testing | Discovered new exit (range 18) 34444 | -2/Testing | Identified exit to Access 34445 | -2/Testing | Entered Access 34445 | -1/Access | Evolved 2 slots: Utility x2 34457 | -1/Access | Identified SHELL Armor 34488 | -1/Access | Identified exit to Garrison 34488 | -1/Access | Entered Garrison 34638 | -1/Garrison | Triggered checkpoint 34753 | -1/Garrison | Spotted B-99 Colossus 34754 | -1/Garrison | Triggered checkpoint 34817 | -1/Garrison | Lost 4 parts (2p1u1w) 34818 | -1/Garrison | Destroyed B-99 Colossus 34909 | -1/Garrison | Destroyed 16 combat bots 34957 | -1/Garrison | Discovered new exit (range 13) 34975 | -1/Garrison | Identified exit to Access 34976 | -1/Garrison | Attempted to access garrison exit controls, blocked by remote lockdown 35002 | -1/Garrison | Triggered checkpoint 35066 | -1/Garrison | Build established: Scavenger-Mutant 35142 | -1/Garrison | Triggered checkpoint 35322 | -1/Garrison | Triggered checkpoint 35419 | -1/Garrison | Discovered exit to Access (range 10) 35452 | -1/Garrison | Installed Relay Interface Framework 35462 | -1/Garrison | Build established: Scavenger-Gunner 35468 | -1/Garrison | Entered Access 35551 | -1/Access | Found Fusion Bomb Launcher 35810 | -1/Access | Build established: Scavenger-Skirmisher 35816 | -1/Access | Spotted B-99 Colossus 35822 | -1/Access | Destroyed B-99 Colossus 35939 | -1/Access | Destroyed 7 combat bots 36050 | -1/Access | Spotted B-99 Colossus 36064 | -1/Access | Destroyed B-99 Colossus 36126 | -1/Access | Spotted B-99 Colossus 36218 | -1/Access | First assault squad dispatched 36623 | -1/Access | Destroyed 9 combat bots 36861 | -1/Access | Discovered new exit (range 3) 36862 | -1/Access | Identified exit to Surface 37212 | -1/Access | Identified Subatomic Replicator 37212 | -1/Access | Used Subatomic Replicator to replicate Adv. Energy Well 37779 | -1/Access | Build established: Scavenger-Gunner 38157 | -1/Access | High security lockdown imminent 38237 | -1/Access | High security lockdown engaged 38291 | -1/Access | Build established: Scavenger-Tank 38414 | -1/Access | Scanned by Researcher 38426 | -1/Access | Destroyed Investigator 38440 | -1/Access | Spotted Executioner 38440 | -1/Access | Spotted Executioner 38443 | -1/Access | Destroyed Executioner 38444 | -1/Access | Destroyed Executioner 38445 | -1/Access | Destroyed Executioner 38466 | -1/Access | Destroyed 23 combat bots 38620 | -1/Access | Destroyed Executioner 38650 | -1/Access | Destroyed 11 combat bots 38738 | -1/Access | Spotted Striker 38741 | -1/Access | Destroyed 13 combat bots 38743 | -1/Access | Spotted Executioner 38746 | -1/Access | Destroyed Striker 38751 | -1/Access | Spotted Executioner 38751 | -1/Access | Destroyed Executioner 38759 | -1/Access | Destroyed Executioner 38786 | -1/Access | Destroyed 7 combat bots 38790 | -1/Access | Destroyed Striker 38793 | -1/Access | Destroyed Executioner 38814 | -1/Access | Sterilization system engaged 38821 | -1/Access | Destroyed Executioner 38832 | -1/Access | Destroyed Striker 38846 | -1/Access | Spotted B-99 Colossus 38853 | -1/Access | Destroyed 11 combat bots 38876 | -1/Access | Spotted B-99 Colossus 38882 | -1/Access | Destroyed Striker 38916 | -1/Access | Destroyed 7 combat bots 38943 | -1/Access | Destroyed B-99 Colossus 38971 | -1/Access | Spotted Executioner 38971 | -1/Access | Spotted Striker 38978 | -1/Access | Destroyed Executioner 38978 | -1/Access | Destroyed B-99 Colossus 38984 | -1/Access | Destroyed Striker 39008 | -1/Access | Lost 5 parts (3p1u1w) 39095 | -1/Access | Found Adv. Kinecellerator 39114 | -1/Access | Ambient heat levels rising (+10) 39172 | -1/Access | Found Prototype Launcher 39172 | -1/Access | Identified Containment Facilitator 39264 | -1/Access | Ambient heat levels rising (+10) 39383 | -1/Access | Build established: Scavenger-Gunner 39414 | -1/Access | Ambient heat levels rising (+10) 39564 | -1/Access | Ambient heat levels rising (+10) 39714 | -1/Access | Ambient heat levels rising (+10) 39802 | *** | Escaped! Last Messages --------------- 39679_ Acquired 8 matter. 39697_ The unstable cave ceiling collapses. 39702_ Acquired 24 matter. 39711_ Acquired 3 matter. 39714_ ALERT: Ambient heat levels +10. 39718_ System corrupted: Matter fused (-6). 39718_ Acquired 12 matter. 39724_ Acquired 13 matter. 39727_ The unstable cave ceiling collapses. 39737_ Acquired 37 matter. 39739_ Acquired 35 matter. 39742_ Acquired 19 matter. 39743_ Acquired 77 matter. 39766_ System corrupted: Energy discharge (-390). 39781_ The unstable cave ceiling collapses. 39785_ Adv. Heavy Siege Treads broken. 39785_ Overload: Short circuit. 39794_ The unstable cave ceiling collapses. [Achievement: One Last FU] Map ----- +----------------------------------------------------+ | ????? ???????????? #???????? | | ????????? ?????????#### #???????? | | ## ##########/#########?# # #???????? | | % ## # #???????? | | # # #???????? | | ## #???????? | | # # #???????? | | ##+################# # ### #???????? | | ^ ## " #????????# # ?????????? | | ## """ #?????#### #### ??????????????? | | ## """ #?????# #??????????????????? | | ## " #?????# #??????????????????? | | ## #?????# #??????????????????? | | ## #?????# #??????????????????? | | ## #?????# #??????????????????? | | ## #?????# #??????????????????? | | ## #?????# #??????????????????? | | ###########?????#" #??????????????????? | | ###############?# #??????????????????? | | # #?# #??????????????????? | | # #?# "#??????????????????? | | # " "" #?# #??????????????????? | | # " "" ### #??????????????????? | | " # # #??????????????????? | | # ! # # "" ##?????????????????? | | # #%# "@ ;#?????????????????? | | ## ##?????????????????? | | #!# #??????????????????? | | # ##### ## # +#!# # #????????#?????????? | | # # ### #???? #?????????? | | # #### # "# ##### #??????? | | # #?##" ## # #??????? | | # #?# " # ## #??????? | | # #?# " # ##### # #??????? | | ? #?# " # ## # #??????? | | ? #?# " # # ## # #??????? | | ? #?# " # # # #### #??????? | | ###" +#+# ## ## #?????? | | #?????? | | +?????? | | ##########+######## ### # # # ## #?????? | | # #???? ###### ### #??? ##?????? | | # ?????# # #### #?????????? | | #??????# ## ## #?????????? | | ???????# # # +?????????? | | ???????# # """ " #?????????? | | ???????# # ## " """" #?????????? | | ???????# # # ## " "" #?????????? | | ???????# ####### ## """""" #?????????? | | ???????###########??????##? "" ???? #?????????? | +----------------------------------------------------+ Best States ------------- Heat Dissipation 142 Energy Generation 65 Energy Capacity 1530 Matter Stores 300 Matter Capacity 300 Sight Range 24 Robot Scan Range 16 Terrain Scan Range 16 Terrain Scan Density 210 Jamming Range 12 Base Temperature (-) 200 Armor Coverage 1800 Resistance: KI 30 Resistance: TH 30 Resistance: EM 75 Evasion (%) 60 Targeting Accuracy 12 Target Analysis 8 Core Analysis 8 Recoil Reduction 6 Particle Charging 15 Kinecelleration 50 Defensive Hacking 14 Item Schematics ----------------- Cryofiber Web | -7/Factory | Hacked Electron Diverter | -2/Testing | Archive Robot Schematics ------------------ R-10 Processor | -2/Testing | Archive Fabricated ------------ Nothing Repaired ---------- Nothing Studied --------- Wheel | -8/Materials | Hacked Gamma Rifle | -2/Testing | Hacked Alien Tech Used ----------------- Subatomic Replicator Achievements -------------- Equal Opportunity Bot Late Bloomer One Last FU Challenges ------------ None Game ------ Seed FluxPietyChargecaster Manual? 0 Play Time 05:33:21 Cumulative 333.8 hours Start 2026.09.04 @ 20:18:02 End 2026.09.05 @ 03:05:39 Sessions 7 Manual Loads 0 Difficulty Rogue Special Mode None Game No. 311 Rogue 257 Adventurer 54 Explorer 0 Win Type 0 Total 16 Types 11/1/1/1/0/0/0/1/0/1 Lore% 80 Gallery% 68 Achievement% 64 Wizard Run 0 Options --------- Layout 1 ASCII 0 Keyboard 0 Movement Mouse Keybinds 1 Fullscreen 2 Font 32/Tamsyn Map View 50x35 Zoom Use 0% Tactical HUD 1 Map Filters NONE Filters NONE Steam 1 RUN: 250b24a9-bc12-4e76-b640-d7c4a22a3f0c